[Event "18èmeFestival International d’Echecsde Rochefort"]
[Site "Rochefort, France"]
[Date "2019.02.16"]
[Round "1.2"]
[White "BAREYRE, Patrick"]
[Black "MARTINEZ DUANY, Lelys Stanley"]
[Result "1-0"]
[TimeControl "1h30 min/40coups + 30 min +  30sec/coup"]
[BlackTitle "GM"]
[WhiteFideId "619663"]
[BlackFideId "3504727"]
[WhiteElo "2136"]
[BlackElo "2547"]

1. d4 {[%clk 01:30:54]} {[%emt 00:00:05]} Nf6 {[%clk 01:30:48]} {[%emt
00:00:12]} 2. Bf4 {[%clk 01:30:33]} {[%emt 00:00:51]} g6 {[%clk 01:30:18]}
{[%emt 00:01:01]} 3. Nd2 {[%clk 01:27:39]} {[%emt 00:03:24]} Bg7 {[%clk
01:30:01]} {[%emt 00:00:46]} 4. e3 {[%clk 01:25:36]} {[%emt 00:02:33]} d6
{[%clk 01:30:07]} {[%emt 00:00:24]} 5. h3 {[%clk 01:25:08]} {[%emt 00:00:59]}
O-O {[%clk 01:29:43]} {[%emt 00:00:54]} 6. Ngf3 {[%clk 01:25:23]} {[%emt
00:00:15]} Nc6 {[%clk 01:29:49]} {[%emt 00:00:24]} 7. Bc4 {[%clk 01:24:27]}
{[%emt 00:01:26]} Qe8 {[%clk 01:28:44]} {[%emt 00:01:35]} 8. O-O {[%clk
01:16:41]} {[%emt 00:08:17]} e5 {[%clk 01:25:05]} {[%emt 00:04:08]} 9. dxe5
{[%clk 01:12:26]} {[%emt 00:04:45]} dxe5 {[%clk 01:23:00]} {[%emt 00:02:36]} 10.
Bh2 {[%clk 01:12:41]} {[%emt 00:00:14]} e4 {[%clk 01:22:59]} {[%emt 00:00:30]}
11. Nd4 {[%clk 01:11:21]} {[%emt 00:01:51]} Ne5 {[%clk 01:23:17]} {[%emt
00:00:12]} 12. Be2 {[%clk 01:10:52]} {[%emt 00:01:00]} a6 {[%clk 01:19:30]}
{[%emt 00:04:17]} 13. b4 {[%clk 01:10:31]} {[%emt 00:00:52]} Nd5 {[%clk
01:15:59]} {[%emt 00:04:00]} 14. Nxe4 {[%clk 01:08:03]} {[%emt 00:02:59]} Nxb4
{[%clk 01:15:59]} {[%emt 00:00:29]} 15. c3 {[%clk 01:03:42]} {[%emt 00:04:52]}
Nbc6 {[%clk 01:12:31]} {[%emt 00:03:57]} 16. Qb3 {[%clk 00:59:56]} {[%emt
00:04:17]} b6 {[%clk 01:08:48]} {[%emt 00:04:13]} 17. Rad1 {[%clk 00:44:52]}
{[%emt 00:15:33]} Na5 {[%clk 01:08:45]} {[%emt 00:00:33]} 18. Qb1 {[%clk
00:44:52]} {[%emt 00:00:31]} Bb7 {[%clk 01:08:40]} {[%emt 00:00:34]} 19. Nd2
{[%clk 00:43:37]} {[%emt 00:01:46]} Rd8 {[%clk 01:03:07]} {[%emt 00:06:02]} 20.
Rfe1 {[%clk 00:35:46]} {[%emt 00:08:22]} c5 {[%clk 00:54:20]} {[%emt 00:09:16]}
21. N4b3 {[%clk 00:35:11]} {[%emt 00:01:06]} Qc6 {[%clk 00:53:56]} {[%emt
00:00:53]} 22. Nf3 {[%clk 00:29:00]} {[%emt 00:06:40]} Nac4 {[%clk 00:47:49]}
{[%emt 00:06:37]} 23. Rxd8 {[%clk 00:25:03]} {[%emt 00:04:28]} Rxd8 {[%clk
00:47:58]} {[%emt 00:00:20]} 24. Rd1 {[%clk 00:25:21]} {[%emt 00:00:13]} Re8
{[%clk 00:47:51]} {[%emt 00:00:35]} 25. Nbd2 {[%clk 00:24:57]} {[%emt
00:00:56]} Nd6 {[%clk 00:45:50]} {[%emt 00:02:30]} 26. c4 {[%clk 00:23:13]}
{[%emt 00:02:14]} b5 {[%clk 00:45:12]} {[%emt 00:01:07]} 27. cxb5 {[%clk
00:22:52]} {[%emt 00:00:53]} axb5 {[%clk 00:45:34]} {[%emt 00:00:07]} 28. Nb3
{[%emt 00:00:47]} Ba8 {[%clk 00:42:59]} {[%emt 00:03:03]} 29. Qc2 {[%clk
00:21:37]} {[%emt 00:01:31]} c4 {[%clk 00:41:49]} {[%emt 00:01:40]} 30. Nbd4
{[%clk 00:21:53]} {[%emt 00:00:15]} Qc5 {[%clk 00:41:13]} {[%emt 00:01:06]} 31.
Nxe5 {[%clk 00:17:39]} {[%emt 00:04:44]} Bxe5 {[%clk 00:41:31]} {[%emt
00:00:11]} 32. Bxe5 {[%clk 00:18:01]} {[%emt 00:00:08]} Rxe5 {[%clk 00:41:16]}
{[%emt 00:00:44]} 33. Bf3 {[%clk 00:17:59]} {[%emt 00:00:33]} Re8 {[%clk
00:41:21]} {[%emt 00:00:23]} 34. Nb3 {[%clk 00:15:07]} {[%emt 00:03:24]} Qa3
{[%clk 00:38:26]} {[%emt 00:03:25]} 35. Nd4 {[%clk 00:14:50]} {[%emt 00:00:47]}
Qc5 {[%clk 00:32:59]} {[%emt 00:05:57]} 36. Nb3 {[%clk 00:14:57]} {[%emt
00:00:23]} Qb6 {[%clk 00:32:59]} {[%emt 00:00:29]} 37. Nd4 {[%clk 00:14:04]}
{[%emt 00:01:25]} Bxf3 {[%clk 00:32:03]} {[%emt 00:01:25]} 38. Nxf3 {[%clk
00:14:25]} {[%emt 00:00:09]} b4 {[%clk 00:31:57]} {[%emt 00:00:35]} 39. Qa4
{[%clk 00:11:48]} {[%emt 00:03:08]} Rd8 {[%clk 00:18:52]} {[%emt 00:13:35]} 40.
Nd4 {[%clk 00:08:36]} {[%emt 00:03:43]} Ne4 {[%clk 00:18:23]} {[%emt 00:00:57]}
41. Rb1 {[%clk 00:08:02]} {[%emt 00:01:05]} b3 {[%clk 00:15:54]} {[%emt
00:02:59]} 42. Rb2 {[%clk 00:04:14]} {[%emt 00:04:19]} Rxd4 {[%clk 00:13:29]}
{[%emt 00:02:55]} 43. Qe8+ {[%clk 00:01:06]} {[%emt 00:03:37]} Kg7 {[%clk
00:13:28]} {[%emt 00:00:31]} 44. Qe5+ {[%clk 00:01:22]} {[%emt 00:00:14]} Qf6
{[%clk 00:12:17]} {[%emt 00:01:40]} 45. Qxf6+ {[%clk 00:01:40]} {[%emt
00:00:12]} Kxf6 {[%clk 00:12:16]} {[%emt 00:00:31]} 46. exd4 {[%clk 00:02:03]}
{[%emt 00:00:08]} bxa2 {[%clk 00:10:52]} {[%emt 00:01:55]} 47. Rxa2 {[%clk
00:02:00]} {[%emt 00:00:34]} Ke6 {[%clk 00:11:16]} {[%emt 00:00:05]} 48. Ra5
{[%clk 00:27:35]} {[%emt 00:04:55]} f6 {[%clk 00:40:51]} {[%emt 00:00:55]} 49.
f3 {[%clk 00:26:50]} {[%emt 00:01:16]} Nc3 {[%clk 00:41:12]} {[%emt 00:00:08]}
50. Rc5 {[%clk 00:25:35]} {[%emt 00:01:45]} Ne2+ {[%clk 00:41:34]} {[%emt
00:00:07]} 51. Kf2 {[%clk 00:25:59]} {[%emt 00:00:07]} Nxd4 {[%clk 00:41:57]}
{[%emt 00:00:07]} 52. Rxc4 {[%clk 00:26:19]} {[%emt 00:00:10]} Ke5 {[%clk
00:40:53]} {[%emt 00:01:33]} 53. g4 {[%clk 00:25:59]} {[%emt 00:00:51]} f5
{[%clk 00:38:45]} {[%emt 00:02:38]} 54. Rc7 {[%clk 00:22:30]} {[%emt 00:04:00]}
h5 {[%clk 00:36:34]} {[%emt 00:02:40]} 55. gxh5 {[%clk 00:20:06]} {[%emt
00:02:55]} gxh5 {[%clk 00:36:59]} {[%emt 00:00:04]} 56. Rh7 {[%clk 00:19:35]}
{[%emt 00:01:01]} Kf4 {[%clk 00:37:15]} {[%emt 00:00:14]} 57. Rxh5 {[%clk
00:19:44]} {[%emt 00:00:22]} Nxf3 {[%clk 00:37:39]} {[%emt 00:00:06]} 58. Rh8
{[%clk 00:20:04]} {[%emt 00:00:10]} Ne5 {[%clk 00:37:12]} {[%emt 00:00:57]} 59.
Rg8 {[%clk 00:19:59]} {[%emt 00:00:36]} Nf7 {[%clk 00:36:53]} {[%emt 00:00:48]}
60. h4 {[%clk 00:19:54]} {[%emt 00:00:35]} Nh6 {[%clk 00:37:17]} {[%emt
00:00:06]} 61. Rg7 {[%clk 00:19:59]} {[%emt 00:00:25]} Ng4+ {[%clk 00:37:37]}
{[%emt 00:00:09]} 62. Kg2 {[%clk 00:20:10]} {[%emt 00:00:19]} Nf6 {[%clk
00:37:15]} {[%emt 00:00:52]} 63. Kh3 {[%clk 00:19:42]} {[%emt 00:00:34]} Nh5
{[%clk 00:37:05]} {[%emt 00:01:04]} 64. Rg6 {[%clk 00:19:42]} {[%emt 00:00:31]}
Ke4 {[%clk 00:36:58]} {[%emt 00:00:36]} 65. Rg5 {[%clk 00:19:42]} {[%emt
00:00:31]} Nf4+ {[%clk 00:37:11]} {[%emt 00:00:16]} 66. Kg3 {[%clk 00:19:05]}
{[%emt 00:01:07]} Ne2+ {[%clk 00:37:00]} {[%emt 00:00:40]} 67. Kf2 {[%clk
00:18:17]} {[%emt 00:01:18]} Nf4 {[%clk 00:37:24]} {[%emt 00:00:06]} 68. Rg8
{[%clk 00:18:26]} {[%emt 00:00:21]} Nh5 {[%clk 00:37:07]} {[%emt 00:00:46]} 69.
Ra8 {[%clk 00:17:00]} {[%emt 00:01:57]} Nf6 {[%clk 00:36:11]} {[%emt 00:01:25]}
70. Ra4+ {[%clk 00:17:03]} {[%emt 00:00:28]} Ke5 {[%clk 00:36:33]} {[%emt
00:00:07]} 71. Kf3 {[%clk 00:17:22]} {[%emt 00:00:12]} Nh5 {[%clk 00:35:25]}
{[%emt 00:01:38]} 72. Ra6 {[%clk 00:17:24]} {[%emt 00:00:29]} Ng7 {[%clk
00:35:36]} {[%emt 00:00:19]} 73. Rg6 {[%clk 00:17:10]} {[%emt 00:00:44]} Nh5
{[%clk 00:33:49]} {[%emt 00:02:17]} 74. Rg5 {[%clk 00:17:29]} {[%emt 00:00:11]}
Nf4 {[%clk 00:33:38]} {[%emt 00:00:41]} 75. h5 {[%clk 00:17:34]} {[%emt
00:00:25]} Ne6 {[%clk 00:33:49]} {[%emt 00:00:19]} 76. Rg8 {[%clk 00:17:37]}
{[%emt 00:00:28]} Nd4+ {[%clk 00:33:32]} {[%emt 00:00:47]} 77. Kf2 {[%clk
00:17:31]} {[%emt 00:00:36]} Nc6 {[%clk 00:32:43]} {[%emt 00:01:20]} 78. h6
{[%clk 00:17:50]} {[%emt 00:00:10]} 1-0

[Event "18èmeFestival International d’Echecsde Rochefort"]
[Site "Rochefort, France"]
[Date "2019.02.16"]
[Round "1.5"]
[White "DELORME, Axel"]
[Black "HARUTYUNYAN, Safar"]
[Result "1-0"]
[TimeControl "1h30 min/40coups + 30 min +  30sec/coup"]
[WhiteTitle "GM"]
[WhiteFideId "632023"]
[BlackFideId "26042428"]
[WhiteElo "2498"]
[BlackElo "2117"]

1. Nf3 {[%clk 01:30:57]} {[%emt 00:00:02]} Nf6 {[%clk 01:30:54]} {[%emt
00:00:07]} 2. g3 {[%clk 01:31:13]} {[%emt 00:00:14]} b5 {[%clk 01:31:12]}
{[%emt 00:00:11]} 3. Bg2 {[%clk 01:29:51]} {[%emt 00:01:52]} Bb7 {[%clk
01:31:35]} {[%emt 00:00:07]} 4. d3 {[%clk 01:28:25]} {[%emt 00:01:56]} e6
{[%clk 01:30:35]} {[%emt 00:01:31]} 5. O-O {[%clk 01:28:22]} {[%emt 00:00:33]}
Be7 {[%clk 01:29:49]} {[%emt 00:01:16]} 6. e4 {[%clk 01:28:12]} {[%emt
00:00:40]} d6 {[%clk 01:24:32]} {[%emt 00:05:47]} 7. Nd4 {[%clk 01:28:05]}
{[%emt 00:00:35]} Qd7 {[%clk 01:18:36]} {[%emt 00:06:27]} 8. Nb3 {[%clk
01:15:27]} {[%emt 00:13:07]} a5 {[%clk 01:13:15]} {[%emt 00:05:51]} 9. Bd2
{[%clk 01:10:26]} {[%emt 00:05:31]} b4 {[%clk 01:04:25]} {[%emt 00:09:20]} 10.
a3 {[%clk 01:10:00]} {[%emt 00:00:57]} a4 {[%clk 00:59:26]} {[%emt 00:05:29]}
11. Nc1 {[%clk 01:10:16]} {[%emt 00:00:12]} bxa3 {[%clk 00:59:46]} {[%emt
00:00:12]} 12. Nxa3 {[%clk 01:10:22]} {[%emt 00:00:24]} Nc6 {[%clk 00:47:52]}
{[%emt 00:12:24]} 13. Re1 {[%clk 01:09:18]} {[%emt 00:01:34]} O-O {[%clk
00:46:38]} {[%emt 00:01:43]} 14. Na2 {[%clk 01:07:10]} {[%emt 00:02:38]} e5
{[%clk 00:43:28]} {[%emt 00:03:41]} 15. Nc4 {[%clk 01:04:26]} {[%emt 00:03:12]}
Ba6 {[%clk 00:26:22]} {[%emt 00:17:37]} 16. Nc3 {[%clk 00:58:46]} {[%emt
00:06:10]} Bxc4 {[%clk 00:24:21]} {[%emt 00:02:31]} 17. dxc4 {[%clk 00:59:11]}
{[%emt 00:00:05]} Nd4 {[%clk 00:24:31]} {[%emt 00:00:19]} 18. Be3 {[%clk
00:58:26]} {[%emt 00:01:16]} c5 {[%clk 00:23:13]} {[%emt 00:01:49]} 19. Qd3
{[%clk 00:57:11]} {[%emt 00:01:44]} Qc6 {[%clk 00:16:35]} {[%emt 00:07:09]} 20.
Ra2 {[%clk 00:56:36]} {[%emt 00:01:05]} Nd7 {[%clk 00:13:22]} {[%emt 00:03:43]}
21. Nd5 {[%clk 00:41:55]} {[%emt 00:15:11]} Bd8 {[%clk 00:08:26]} {[%emt
00:05:26]} 22. Rd1 {[%clk 00:42:07]} {[%emt 00:00:17]} Re8 {[%clk 00:06:43]}
{[%emt 00:02:14]} 23. h4 {[%clk 00:39:40]} {[%emt 00:02:56]} Ra6 {[%clk
00:05:36]} {[%emt 00:01:37]} 24. Rda1 {[%clk 00:35:17]} {[%emt 00:04:54]} Kf8
{[%clk 00:01:19]} {[%emt 00:04:47]} 25. Nc3 {[%clk 00:31:02]} {[%emt 00:04:45]}
Nb6 {[%clk 00:00:43]} {[%emt 00:01:06]} 26. b3 {[%clk 00:31:23]} {[%emt
00:00:09]} Bc7 {[%clk 00:00:46]} {[%emt 00:00:27]} 27. Nxa4 {[%clk 00:30:47]}
{[%emt 00:01:06]} Rea8 {[%clk 00:00:43]} {[%emt 00:00:34]} 28. Nc3 {[%clk
00:30:56]} {[%emt 00:00:20]} Rxa2 {[%clk 00:00:53]} {[%emt 00:00:20]} 29. Rxa2
{[%clk 00:31:21]} {[%emt 00:00:05]} Rxa2 {[%clk 00:01:10]} {[%emt 00:00:13]} 30.
Nxa2 {[%clk 00:31:38]} {[%emt 00:00:09]} Qa8 {[%clk 00:01:30]} {[%emt
00:00:15]} 31. Nc3 {[%clk 00:30:36]} {[%emt 00:01:31]} Qa1+ {[%clk 00:01:34]}
{[%emt 00:00:26]} 32. Kh2 {[%clk 00:29:24]} {[%emt 00:01:42]} Qb2 {[%clk
00:01:18]} {[%emt 00:00:46]} 33. Nb5 {[%clk 00:27:45]} {[%emt 00:02:09]} Nxb5
{[%clk 00:00:46]} {[%emt 00:01:03]} 34. cxb5 {[%clk 00:28:11]} {[%emt
00:00:04]} Qa2 {[%clk 00:00:56]} {[%emt 00:00:20]} 35. Bf1 {[%clk 00:28:24]}
{[%emt 00:00:17]} Qa8 {[%clk 00:00:37]} {[%emt 00:00:49]} 36. Bh3 {[%clk
00:25:54]} {[%emt 00:03:00]} Qa2 {[%clk 00:00:41]} {[%emt 00:00:26]} 37. Qc3
{[%clk 00:18:42]} {[%emt 00:07:41]} Qa3 {[%clk 00:00:40]} {[%emt 00:00:33]} 38.
Bf1 {[%clk 00:18:23]} {[%emt 00:00:48]} h6 {[%clk 00:00:39]} {[%emt 00:00:32]}
39. Be2 {[%clk 00:17:33]} {[%emt 00:01:19]} Kg8 {[%clk 00:00:45]} {[%emt
00:00:24]} 40. Qd3 {[%clk 00:14:43]} {[%emt 00:03:19]} Qa2 {[%clk 00:00:34]}
{[%emt 00:00:41]} 41. Bh5 {[%clk 00:13:37]} {[%emt 00:01:36]} Qa8 {[%clk
00:00:41]} {[%emt 00:00:24]} 42. Bg4 {[%clk 00:11:21]} {[%emt 00:02:45]} Qa5
{[%clk 00:00:51]} {[%emt 00:00:22]} 43. h5 {[%clk 00:10:18]} {[%emt 00:01:32]}
Qa8 {[%clk 00:00:59]} {[%emt 00:00:21]} 44. Bf5 {[%clk 00:09:37]} {[%emt
00:01:11]} Kf8 {[%clk 00:01:21]} {[%emt 00:00:09]} 45. Qd2 {[%clk 00:08:02]}
{[%emt 00:02:04]} Ke7 {[%clk 00:27:08]} {[%emt 00:04:44]} 46. c4 {[%clk
00:32:26]} {[%emt 00:06:06]} Qa1 {[%clk 00:25:52]} {[%emt 00:01:46]} 47. Kg2
{[%clk 00:31:28]} {[%emt 00:01:26]} Qa8 {[%clk 00:26:13]} {[%emt 00:00:11]} 48.
Qc1 {[%clk 00:23:22]} {[%emt 00:08:35]} Qa5 {[%clk 00:22:25]} {[%emt 00:04:19]}
49. Bxh6 {[%clk 00:19:57]} {[%emt 00:03:54]} gxh6 {[%clk 00:22:46]} {[%emt
00:00:10]} 50. Qxh6 {[%clk 00:20:18]} {[%emt 00:00:09]} Nd7 {[%clk 00:19:36]}
{[%emt 00:03:40]} 51. Qg7 {[%clk 00:17:32]} {[%emt 00:03:15]} Qa8 {[%clk
00:18:23]} {[%emt 00:01:43]} 52. h6 {[%clk 00:16:26]} {[%emt 00:01:38]} Nf6
{[%clk 00:17:01]} {[%emt 00:01:52]} 53. h7 {[%clk 00:16:27]} {[%emt 00:00:29]}
Nxh7 {[%clk 00:17:20]} {[%emt 00:00:11]} 54. Qxh7 {[%clk 00:16:41]} {[%emt
00:00:16]} Qe8 {[%clk 00:16:41]} {[%emt 00:01:09]} 55. Qh4+ {[%clk 00:16:03]}
{[%emt 00:01:08]} Kf8 {[%clk 00:16:55]} {[%emt 00:00:17]} 56. Qh6+ {[%clk
00:14:59]} {[%emt 00:01:32]} Ke7 {[%clk 00:16:57]} {[%emt 00:00:28]} 57. Qg5+
{[%clk 00:15:23]} {[%emt 00:00:05]} Kf8 {[%clk 00:16:48]} {[%emt 00:00:40]} 58.
Qd2 {[%clk 00:15:37]} {[%emt 00:00:16]} Qa8 {[%clk 00:16:58]} {[%emt 00:00:20]}
59. b6 {[%clk 00:15:10]} {[%emt 00:00:57]} Bb8 {[%clk 00:17:18]} {[%emt
00:00:10]} 60. Qd5 {[%clk 00:13:25]} {[%emt 00:02:15]} Qxd5 {[%clk 00:16:26]}
{[%emt 00:01:22]} 61. cxd5 {[%clk 00:13:39]} {[%emt 00:00:17]} Ke7 {[%clk
00:16:50]} {[%emt 00:00:06]} 62. Kf1 {[%clk 00:14:01]} {[%emt 00:00:08]} 1-0


[ePGN "0.1;DGT LiveChess/2.2.3"]

[Event "18èmeFestival International d’Echecsde Rochefort"]
[Site "Rochefort, France"]
[Date "2019.02.17"]
[Round "2.1"]
[White "COUPET, Pascal"]
[Black "VAN DEN DOEL, Erik"]
[Result "1/2-1/2"]
[TimeControl "1h30 min/40coups + 30 min +  30sec/coup"]
[BlackTitle "GM"]
[WhiteFideId "600709"]
[BlackFideId "1003720"]
[WhiteElo "2267"]
[BlackElo "2611"]

1. e4 {[%clk 01:25:16]} {[%emt 00:05:42]} e5 {[%clk 01:30:54]} {[%emt
00:00:07]} 2. Nf3 {[%clk 01:25:36]} {[%emt 00:00:10]} Nc6 {[%clk 01:31:16]}
{[%emt 00:00:05]} 3. Bc4 {[%clk 01:25:56]} {[%emt 00:00:13]} Bc5 {[%clk
01:31:40]} {[%emt 00:00:06]} 4. c3 {[%clk 01:26:13]} {[%emt 00:00:14]} Nf6
{[%clk 01:32:05]} {[%emt 00:00:05]} 5. d3 {[%clk 01:26:33]} {[%emt 00:00:10]}
d6 {[%emt 00:00:52]} 6. Bb3 {[%clk 01:25:29]} {[%emt 00:01:17]} h6 {[%clk
01:25:10]} {[%emt 00:07:20]} 7. Nbd2 {[%clk 01:25:02]} {[%emt 00:00:56]} Bb6
{[%clk 01:18:41]} {[%emt 00:07:00]} 8. O-O {[%clk 01:23:59]} {[%emt 00:01:32]}
Ne7 {[%clk 01:16:05]} {[%emt 00:03:08]} 9. Nc4 {[%clk 01:04:18]} {[%emt
00:20:11]} O-O {[%clk 01:12:59]} {[%emt 00:03:36]} 10. a4 {[%clk 01:03:55]}
{[%emt 00:00:53]} c6 {[%clk 01:13:01]} {[%emt 00:00:27]} 11. Nxb6 {[%clk
01:02:54]} {[%emt 00:01:31]} axb6 {[%clk 01:13:19]} {[%emt 00:00:13]} 12. Re1
{[%clk 01:01:57]} {[%emt 00:01:26]} Ng6 {[%clk 01:11:03]} {[%emt 00:02:47]} 13.
d4 {[%clk 00:57:34]} {[%emt 00:04:53]} Qc7 {[%clk 01:06:35]} {[%emt 00:04:57]}
14. h3 {[%clk 00:47:23]} {[%emt 00:10:40]} Bd7 {[%clk 01:05:25]} {[%emt
00:01:40]} 15. Qd3 {[%clk 00:38:08]} {[%emt 00:09:46]} Rfe8 {[%clk 00:45:28]}
{[%emt 00:20:27]} 16. dxe5 {[%clk 00:32:39]} {[%emt 00:05:58]} dxe5 {[%clk
00:44:57]} {[%emt 00:01:02]} 17. Be3 {[%clk 00:30:55]} {[%emt 00:02:13]} Rad8
{[%clk 00:39:33]} {[%emt 00:05:54]} 18. Qc2 {[%clk 00:30:45]} {[%emt 00:00:39]}
c5 {[%clk 00:31:50]} {[%emt 00:08:14]} 19. Bc4 {[%clk 00:26:35]} {[%emt
00:04:40]} Bc6 {[%clk 00:28:09]} {[%emt 00:04:12]} 20. Nd2 {[%clk 00:26:45]}
{[%emt 00:00:19]} Nf4 {[%clk 00:24:37]} {[%emt 00:04:02]} 21. b4 {[%clk
00:26:47]} {[%emt 00:00:28]} Bd7 {[%clk 00:22:02]} {[%emt 00:03:04]} 22. Qb3
{[%clk 00:22:36]} {[%emt 00:04:41]} Be6 {[%clk 00:21:13]} {[%emt 00:01:19]} 23.
Bxe6 {[%clk 00:18:47]} {[%emt 00:04:20]} Rxe6 {[%clk 00:20:05]} {[%emt
00:01:38]} 24. a5 {[%clk 00:17:58]} {[%emt 00:01:19]} cxb4 {[%clk 00:13:07]}
{[%emt 00:07:28]} 25. cxb4 {[%clk 00:15:41]} {[%emt 00:02:46]} Rd3 {[%clk
00:11:35]} {[%emt 00:02:02]} 26. axb6 {[%clk 00:14:17]} {[%emt 00:01:54]} Qd8
{[%clk 00:09:47]} {[%emt 00:02:17]} 27. Qb2 {[%clk 00:14:23]} {[%emt 00:00:25]}
Nd7 {[%clk 00:09:05]} {[%emt 00:01:12]} 28. Nf3 {[%clk 00:12:46]} {[%emt
00:02:07]} Rg6 {[%clk 00:07:25]} {[%emt 00:02:10]} 29. Bxf4 {[%clk 00:10:17]}
{[%emt 00:02:58]} exf4 {[%clk 00:07:53]} {[%emt 00:00:02]} 30. Qe2 {[%clk
00:09:42]} {[%emt 00:01:04]} Nxb6 {[%clk 00:06:14]} {[%emt 00:02:10]} 31. Ra7
{[%clk 00:07:24]} {[%emt 00:02:48]} Rd7 {[%clk 00:04:40]} {[%emt 00:02:04]} 32.
Ne5 {[%clk 00:06:21]} {[%emt 00:01:32]} Rd2 {[%clk 00:05:09]} {[%emt 00:00:02]}
33. Qf3 {[%clk 00:06:34]} {[%emt 00:00:15]} Re6 {[%clk 00:05:12]} {[%emt
00:00:29]} 34. Rxb7 {[%clk 00:05:41]} {[%emt 00:01:23]} Rxe5 {[%clk 00:02:29]}
{[%emt 00:03:12]} 35. Qxf4 {[%clk 00:06:08]} {[%emt 00:00:03]} Rd7 {[%clk
00:02:09]} {[%emt 00:00:51]} 36. Rxb6 {[%clk 00:06:09]} {[%emt 00:00:28]} Qxb6
{[%clk 00:02:15]} {[%emt 00:00:24]} 37. Qxe5 {[%clk 00:06:36]} {[%emt
00:00:02]} Qxb4 {[%clk 00:02:37]} {[%emt 00:00:08]} 38. Ra1 {[%clk 00:04:46]}
{[%emt 00:02:20]} Rd8 {[%clk 00:02:42]} {[%emt 00:00:25]} 39. g3 {[%clk
00:03:14]} {[%emt 00:02:02]} Qb7 {[%clk 00:01:58]} {[%emt 00:01:14]} 40. Kg2
{[%clk 00:00:59]} {[%emt 00:02:45]} Qd7 {[%clk 00:02:12]} {[%emt 00:00:17]} 41.
Rc1 {[%clk 00:01:15]} {[%emt 00:00:14]} Re8 {[%clk 00:28:07]} {[%emt 00:04:35]}
42. Qd5 {[%clk 00:25:38]} {[%emt 00:06:06]} Qe7 {[%clk 00:28:13]} {[%emt
00:00:25]} 43. Rc4 {[%clk 00:25:09]} {[%emt 00:00:59]} Rd8 {[%clk 00:28:17]}
{[%emt 00:00:27]} 44. Qc5 {[%clk 00:25:06]} {[%emt 00:00:32]} Qd7 {[%clk
00:26:58]} {[%emt 00:01:49]} 45. Qc6 {[%clk 00:23:39]} {[%emt 00:01:56]} Qd3
{[%clk 00:26:08]} {[%emt 00:01:20]} 46. e5 {[%clk 00:23:10]} {[%emt 00:00:58]}
Qf5 {[%clk 00:24:58]} {[%emt 00:01:39]} 47. Qc7 {[%clk 00:22:59]} {[%emt
00:00:43]} Re8 {[%clk 00:23:12]} {[%emt 00:02:16]} 48. Rf4 {[%clk 00:22:08]}
{[%emt 00:01:20]} Qe6 {[%clk 00:23:30]} {[%emt 00:00:13]} 49. g4 {[%clk
00:22:02]} {[%emt 00:00:36]} Re7 {[%clk 00:20:01]} {[%emt 00:03:59]} 50. Qd8+
{[%clk 00:20:24]} {[%emt 00:02:08]} Re8 {[%clk 00:20:26]} {[%emt 00:00:06]} 51.
Qc7 {[%clk 00:19:56]} {[%emt 00:00:57]} 1/2-1/2